bitfinex/quotes_BTCUSD_20230118
["timestamp","ask_amount","ask_price","bid_price","bid_amount"]
[1674076361094,0.559192,20795.0,20792.0,0.18268798]
[1674076361374,0.480892,20795.0,20794.0,0.22318995]
[1674076361653,0.489392,20795.0,20794.0,0.22318995]
[1674076362251,0.489392,20795.0,20793.0,0.003]
[1674076362523,0.489392,20795.0,20792.0,0.00598965]
[1674076362524,0.0085,20794.0,20792.0,0.00598965]
[1674076364499,0.0125,20794.0,20792.0,0.03298965]
[1674076365015,0.0085,20794.0,20792.0,0.00598965]
[1674076365290,0.0125,20794.0,20792.0,0.03298965]
[1674076365564,0.0165,20794.0,20792.0,0.05998965]
[1674076366058,0.0085,20794.0,20792.0,0.00598965]
[1674076366350,0.16474831,20794.0,20792.0,0.00598965]
[1674076366634,0.0085,20794.0,20792.0,0.00598965]
[1674076367679,0.68177603,20794.0,20792.0,0.00598965]
[1674076367957,0.98577603,20794.0,20792.0,0.03298965]
[1674076368243,0.87171,20794.0,20792.0,0.03298965]
[1674076368795,0.87171,20794.0,20792.0,0.260344]
[1674076368796,0.57171,20794.0,20792.0,0.260344]
[1674076369356,0.004,20794.0,20792.0,0.45466497]
[1674076369638,0.004,20794.0,20792.0,0.714297]
[1674076370178,0.045,20794.0,20792.0,0.717297]
[1674076370185,0.12256603,20796.0,20792.0,1.195251]
[1674076370474,0.004,20794.0,20792.0,1.41657197]
[1674076370755,0.0085,20796.0,20792.0,1.195251]
[1674076371041,0.006,20794.0,20792.0,1.41757197]
[1674076371316,0.006,20794.0,20792.0,1.195251]
[1674076371634,0.006,20796.0,20792.0,1.195251]
[1674076371916,0.11406603,20797.0,20792.0,1.38957197]
[1674076372200,0.97686526,20798.0,20794.0,0.15]
[1674076372201,0.86279924,20798.0,20794.0,0.15]
[1674076372481,0.0085,20797.0,20794.0,0.82522497]
[1674076372773,0.006,20796.0,20794.0,0.630904]
[1674076373055,0.0085,20797.0,20794.0,0.630904]
[1674076373331,0.0145,20797.0,20794.0,0.630904]
[1674076373897,0.0085,20797.0,20794.0,0.658904]
[1674076374168,0.0145,20797.0,20794.0,1.111811]
[1674076374431,0.0145,20797.0,20795.0,0.2056736]
[1674076374432,0.0185,20797.0,20795.0,0.2056736]
[1674076374713,0.0125,20797.0,20795.0,0.2056736]
[1674076375586,0.004,20797.0,20795.0,0.6865436]
[1674076376400,0.01,20797.0,20795.0,0.6865436]
[1674076376890,0.01859617,20798.0,20795.0,1.1674276]
[1674076376892,0.006,20797.0,20795.0,1.1954276]
[1674076377165,0.01859617,20798.0,20795.0,1.1674276]
[1674076377448,0.006,20797.0,20795.0,1.1954276]
[1674076377724,0.01859617,20798.0,20795.0,1.1674276]
[1674076378287,0.02459617,20798.0,20795.0,1.1954276]
[1674076378566,0.1386622,20798.0,20795.0,1.1954276]
[1674076378848,0.4386622,20798.0,20795.0,1.1954276]
[1674076379130,0.0085,20797.0,20795.0,0.2056736]
[1674076379650,0.0085,20797.0,20795.0,0.2336736]
[1674076379660,0.0085,20797.0,20795.0,0.2056736]
[1674076379936,0.0085,20797.0,20795.0,0.028]
[1674076380216,0.0085,20797.0,20794.0,0.480885]
[1674076380495,0.0145,20797.0,20795.0,0.028]
[1674076381107,0.12256603,20797.0,20794.0,0.480885]
[1674076381674,0.157,20795.0,20792.0,0.00598965]
[1674076381969,0.0783,20793.0,20792.0,0.00598965]
[1674076382249,0.859231,20793.0,20792.0,0.00598965]
[1674076382523,0.867731,20793.0,20792.0,0.00598965]
[1674076382796,1.348662,20793.0,20792.0,0.00598965]
[1674076383083,1.414662,20793.0,20792.0,0.00798965]
[1674076383447,0.0745,20793.0,20792.0,0.00598965]
[1674076383653,0.1405,20793.0,20792.0,0.00798965]
[1674076384488,0.621431,20793.0,20792.0,0.00798965]
[1674076384771,0.555431,20793.0,20792.0,0.00787486]
[1674076385049,0.555431,20793.0,20792.0,0.00887486]
[1674076385341,0.3745,20793.0,20792.0,0.00887486]
[1674076385636,0.0745,20793.0,20792.0,0.00887486]
[1674076385913,0.0745,20793.0,20792.0,0.12056082]
[1674076386192,0.489431,20793.0,20792.0,0.00587486]
[1674076386475,0.855431,20793.0,20792.0,0.00887486]
[1674076386755,0.789431,20793.0,20792.0,0.00587486]
[1674076387043,0.832431,20793.0,20792.0,0.00887486]
[1674076387607,1.73615988,20793.0,20792.0,0.00887486]
[1674076387884,1.46302803,20793.0,20792.0,0.00587486]
[1674076388169,1.114962,20793.0,20792.0,0.00887486]
[1674076388409,1.414962,20793.0,20792.0,0.00887486]
[1674076388732,1.348962,20793.0,20792.0,0.00587486]
[1674076389025,1.5933955,20793.0,20792.0,0.00887486]
[1674076389859,1.46302803,20793.0,20792.0,0.00587486]
[1674076390189,1.63412707,20793.0,20792.0,0.00587486]
[1674076390461,1.63394426,20793.0,20792.0,0.00587486]
[1674076391012,1.69994426,20793.0,20792.0,0.00787486]
[1674076391319,1.82230826,20793.0,20792.0,0.00787486]
[1674076392640,1.9934073,20793.0,20792.0,0.00787486]
[1674076392911,1.69994426,20793.0,20792.0,0.00787486]
[1674076394302,2.22702819,20793.0,20792.0,0.00787486]
[1674076394581,2.07699185,20793.0,20792.0,0.00787486]
[1674076394855,1.72189405,20793.0,20792.0,0.00787486]
[1674076395134,1.99473886,20793.0,20792.0,0.00787486]
[1674076395768,2.16560335,20793.0,20792.0,0.00787486]
[1674076396050,2.16557269,20793.0,20792.0,0.00787486]
[1674076396326,2.34986448,20793.0,20792.0,0.00787486]
[1674076397085,2.12173243,20793.0,20792.0,0.00787486]
[1674076397641,2.12173243,20793.0,20792.0,0.00590981]
[1674076397642,1.83656737,20793.0,20792.0,0.00590981]
[1674076397793,1.98656737,20793.0,20792.0,0.00590981]
[1674076398388,1.83656737,20793.0,20792.0,0.00590981]
[1674076398672,1.98656737,20793.0,20792.0,0.00590981]
[1674076398952,2.32876545,20793.0,20792.0,0.00590981]
[1674076399261,1.98656737,20793.0,20792.0,0.00590981]
[1674076399541,2.32876545,20793.0,20792.0,0.00590981]
[1674076399819,2.17876545,20793.0,20792.0,0.00590981]
[1674076400383,1.54866219,20793.0,20792.0,0.00590981]
[1674076400692,1.77661474,20793.0,20792.0,0.00590981]
[1674076401509,1.54866219,20793.0,20792.0,0.00590981]
[1674076401832,1.84866219,20793.0,20792.0,0.00590981]
[1674076404169,2.07661705,20793.0,20792.0,0.00590981]
[1674076404462,1.43527354,20793.0,20792.0,0.00590981]
[1674076404747,1.32129321,20793.0,20792.0,0.00590981]
[1674076405310,0.84036221,20793.0,20792.0,0.00590981]
[1674076405604,0.0745,20793.0,20792.0,0.10679981]
[1674076407330,0.555431,20793.0,20792.0,0.00590981]
[1674076407586,1.62129321,20793.0,20792.0,0.00590981]
[1674076407856,1.73527354,20793.0,20792.0,0.00590981]
[1674076408130,1.02638768,20793.0,20792.0,0.00590981]
[1674076408417,1.39832169,20793.0,20792.0,0.00590981]
[1674076408688,1.14038737,20793.0,20792.0,0.00590981]
[1674076410139,1.25434254,20793.0,20792.0,0.00590981]
[1674076410408,0.18000399,20793.0,20792.0,0.10679981]
[1674076410679,0.066,20793.0,20792.0,0.10679981]
[1674076411496,0.66943499,20793.0,20792.0,0.00590981]
[1674076411775,0.99854029,20793.0,20792.0,0.00590981]
[1674076412058,1.59342216,20793.0,20792.0,0.00590981]
[1674076412341,1.64321686,20793.0,20792.0,0.00590981]
[1674076412811,1.64321686,20793.0,20792.0,0.00444361]
[1674076412812,1.48487772,20793.0,20792.0,0.00444361]
[1674076412826,1.63487772,20793.0,20792.0,0.00444361]
[1674076413101,1.48487772,20793.0,20792.0,0.00444361]
[1674076413383,2.05498342,20793.0,20792.0,0.00444361]
[1674076413656,1.76992908,20793.0,20792.0,0.00366593]
[1674076413946,1.69798338,20793.0,20792.0,0.00366593]
[1674076414314,1.43546751,20793.0,20792.0,0.00366593]
[1674076414596,1.61904195,20793.0,20792.0,0.00366593]
[1674076414871,1.2644163,20793.0,20792.0,0.00366593]
[1674076415176,1.43558482,20793.0,20792.0,0.00366593]
[1674076415451,1.91964921,20793.0,20792.0,0.00366593]
[1674076416282,1.69159491,20793.0,20792.0,0.00366593]
[1674076416964,1.61996893,20793.0,20792.0,0.00366593]
[1674076416965,1.61996893,20793.0,20792.0,0.10455593]
[1674076417246,1.26473602,20793.0,20792.0,0.10455593]
[1674076417517,1.43602482,20793.0,20792.0,0.10455593]
[1674076417839,0.95509382,20793.0,20792.0,0.10455593]
[1674076418090,0.47416282,20793.0,20792.0,0.10455593]
[1674076418358,0.47430458,20793.0,20792.0,0.10455593]
[1674076418907,0.36021985,20793.0,20792.0,0.10455593]
[1674076419520,0.066,20793.0,20792.0,0.79721495]
[1674076420062,0.066,20793.0,20792.0,1.27816895]
[1674076420623,0.18028929,20793.0,20792.0,1.27816895]
[1674076420902,0.066,20793.0,20792.0,1.27816895]
[1674076421183,0.11728929,20793.0,20792.0,1.30516895]
[1674076421461,0.11428929,20793.0,20792.0,1.27616895]
[1674076421760,0.29171985,20793.0,20792.0,0.24437095]
[1674076422060,0.29171985,20793.0,20792.0,0.21337095]
[1674076422348,0.29467783,20793.0,20792.0,0.24237095]
[1674076422619,0.29467783,20793.0,20792.0,0.14237095]
[1674076423661,0.29467783,20793.0,20792.0,0.029]
[1674076423940,0.18893056,20793.0,20792.0,0.029]
[1674076424211,0.98353338,20793.0,20792.0,0.029]
[1674076424733,1.46446438,20793.0,20792.0,0.029]
[1674076424758,1.23609036,20793.0,20792.0,0.029]
[1674076425581,1.84383424,20793.0,20792.0,0.029]
[1674076425872,2.26473232,20793.0,20792.0,0.029]
[1674076426153,1.92253424,20793.0,20792.0,0.02159878]
[1674076426442,1.66067,20793.0,20792.0,0.02159878]
[1674076426717,1.65167,20793.0,20790.0,0.00601776]
[1674076427004,0.47720169,20792.0,20790.0,0.00601776]
[1674076427309,0.77644456,20791.0,20790.0,0.00601776]
[1674076427607,4.23172271,20791.0,20790.0,0.00338546]
[1674076427893,3.9082816,20791.0,20790.0,0.00538546]
[1674076428164,3.9082816,20791.0,20790.0,0.00338546]
[1674076428458,3.9782816,20791.0,20790.0,0.00538546]
[1674076428744,2.84708515,20791.0,20790.0,0.00338546]
[1674076429036,2.67416446,20791.0,20790.0,0.00338546]
[1674076429333,3.01651881,20791.0,20790.0,0.00338546]
[1674076429605,2.74416446,20791.0,20790.0,0.00538546]
[1674076430125,2.89416446,20791.0,20790.0,0.00338546]
[1674076430148,2.96416446,20791.0,20790.0,0.00538546]
[1674076430428,3.30643848,20791.0,20790.0,0.00538546]
[1674076430701,3.30642021,20791.0,20790.0,0.00538546]
[1674076430976,3.30642021,20791.0,20790.0,0.00338546]
[1674076430977,3.16642021,20791.0,20790.0,0.00338546]
[1674076431479,3.37136615,20791.0,20790.0,0.00538546]
[1674076431493,3.65866615,20791.0,20790.0,0.00538546]
[1674076431795,3.74330848,20791.0,20790.0,0.00538546]
[1674076432063,4.1282816,20791.0,20790.0,0.00538546]
[1674076432691,3.9056816,20791.0,20790.0,0.00538546]
[1674076432965,4.1282916,20791.0,20790.0,0.00538546]
[1674076433241,4.20098592,20791.0,20790.0,0.00538546]
[1674076433534,3.8160128,20791.0,20790.0,0.00538546]
[1674076434581,3.74331848,20791.0,20790.0,0.00538546]
[1674076434857,3.74331848,20791.0,20787.0,0.00563974]
[1674076434858,5.25786969,20791.0,20787.0,0.00563974]
[1674076435143,0.4446,20788.0,20787.0,0.00563974]
[1674076435429,2.1811645,20788.0,20787.0,0.00563974]
[1674076435711,3.36631728,20788.0,20787.0,0.00315985]
[1674076436003,4.07725218,20788.0,20786.0,0.00640272]
[1674076436280,2.03255266,20787.0,20786.0,0.00237329]
[1674076436572,2.40632553,20787.0,20786.0,0.00237329]
[1674076436888,3.78563361,20787.0,20786.0,0.00237329]
[1674076437462,4.58753361,20787.0,20785.0,0.00640272]
[1674076437743,1.37347018,20786.0,20785.0,0.00640272]
[1674076438289,2.99771798,20786.0,20785.0,0.00640272]
[1674076438296,2.6559931,20786.0,20785.0,0.00640272]
[1674076438564,2.82614184,20786.0,20785.0,0.00640272]
[1674076439106,3.11071844,20786.0,20785.0,0.00140272]
[1674076439618,3.03181844,20786.0,20785.0,0.00140272]
[1674076439888,3.25952076,20786.0,20785.0,0.00140272]
[1674076440160,2.74957791,20786.0,20785.0,0.00140272]
[1674076440437,2.16168403,20786.0,20785.0,0.00140272]
[1674076440721,2.33239238,20786.0,20785.0,0.00140272]
[1674076440995,2.3349536,20786.0,20785.0,0.00140272]
[1674076441271,2.43197826,20786.0,20785.0,0.00140272]
[1674076441544,2.87936377,20786.0,20785.0,0.00140272]
[1674076441819,2.89478717,20786.0,20785.0,0.00140272]
[1674076442313,2.96222726,20786.0,20785.0,0.00140272]
[1674076442314,2.91518959,20786.0,20785.0,0.00140272]
[1674076442585,2.73199714,20786.0,20785.0,0.00140272]
[1674076442861,2.73195498,20786.0,20785.0,0.00140272]
[1674076443132,2.50437862,20786.0,20785.0,0.00140272]
[1674076443463,3.07209519,20786.0,20785.0,0.00140272]
[1674076443678,2.95832008,20786.0,20785.0,0.00140272]
[1674076443956,3.66309813,20786.0,20785.0,0.00140272]
[1674076444237,3.84449531,20786.0,20785.0,0.00140272]
[1674076445032,3.61691895,20786.0,20785.0,0.00140272]
[1674076445585,3.84440025,20786.0,20785.0,0.00140272]
[1674076445855,3.84439409,20786.0,20785.0,0.00140272]
[1674076446154,0.15,20785.0,20784.0,0.00865228]
[1674076446423,3.22155216,20785.0,20784.0,0.0080485]
[1674076447004,3.11903481,20785.0,20784.0,0.0080485]
[1674076447288,3.11903481,20785.0,20784.0,8.5e-06]
[1674076447289,3.32610106,20785.0,20784.0,8.5e-06]
[1674076447584,0.38492253,20784.0,20783.0,5.51e-06]
[1674076447871,0.38492253,20784.0,20781.0,0.00712121]
[1674076447872,0.2873,20782.0,20781.0,0.00712121]
[1674076448146,3.529291,20782.0,20781.0,0.00712121]
[1674076448430,4.02034258,20782.0,20781.0,0.00712121]
[1674076448712,3.68118369,20782.0,20781.0,0.00712121]
[1674076448992,3.88692488,20782.0,20781.0,0.00712121]
[1674076449275,3.86416717,20782.0,20781.0,0.00712121]
[1674076449553,4.15588486,20782.0,20781.0,0.00712121]
[1674076449857,4.24688486,20782.0,20781.0,0.00712121]
[1674076450228,4.47428668,20782.0,20781.0,0.00712121]
[1674076450503,4.36045668,20782.0,20781.0,0.00712121]
[1674076450782,3.77211206,20782.0,20781.0,0.00712121]
[1674076451062,4.15490204,20782.0,20781.0,0.00712121]
[1674076451336,4.23194963,20782.0,20781.0,0.00712121]
[1674076451633,4.18797868,20782.0,20781.0,0.00712121]
[1674076451914,3.8961606,20782.0,20781.0,0.00712121]
[1674076452187,3.8051606,20782.0,20781.0,0.00712121]
[1674076452476,3.58758019,20782.0,20781.0,0.00712121]
[1674076452765,3.67858019,20782.0,20781.0,0.00712121]
[1674076453044,3.58758019,20782.0,20781.0,0.00712121]
[1674076453312,3.67858019,20782.0,20781.0,0.00712121]
[1674076453594,3.58758019,20782.0,20781.0,0.00712121]
[1674076453898,3.26503647,20782.0,20781.0,0.00712121]
[1674076454195,2.65820647,20782.0,20781.0,0.00712121]
[1674076454448,2.17560428,20782.0,20781.0,0.00712121]
[1674076454746,2.08460428,20782.0,20781.0,0.00712121]
[1674076455033,2.17560428,20782.0,20781.0,0.00712121]
[1674076455325,2.08460428,20782.0,20781.0,0.00712121]
[1674076455891,1.69840259,20782.0,20781.0,0.00712121]
[1674076456181,1.60740259,20782.0,20781.0,0.00712121]
[1674076456521,1.68990259,20782.0,20781.0,0.00712121]
[1674076456973,1.59890259,20782.0,20781.0,0.00712121]
[1674076457268,1.89890259,20782.0,20781.0,0.00712121]
[1674076457544,1.13041759,20782.0,20781.0,0.00712121]
[1674076457841,0.65773259,20782.0,20781.0,0.00712121]
[1674076458124,0.091,20782.0,20781.0,0.20144218]
[1674076458417,0.88193872,20786.0,20781.0,0.23726977]
[1674076458418,0.55943776,20786.0,20781.0,0.23726977]
[1674076458700,0.067,20782.0,20781.0,0.20344218]
[1674076458999,0.067,20782.0,20781.0,0.00912121]
[1674076459282,0.08272838,20784.0,20781.0,0.00712121]
[1674076459581,0.08272838,20784.0,20781.0,0.22344218]
[1674076459582,0.56388238,20784.0,20781.0,0.22344218]
[1674076459865,0.481139,20785.0,20781.0,0.20144218]
[1674076460159,0.481139,20785.0,20781.0,0.35444218]
[1674076460160,0.053,20782.0,20781.0,0.35444218]
[1674076460674,0.053,20782.0,20781.0,0.34164497]
[1674076460676,0.053,20782.0,20781.0,0.82693875]
[1674076460988,0.053,20782.0,20781.0,1.71842375]
[1674076461289,0.049,20784.0,20781.0,1.71742375]
[1674076461581,0.56680527,20787.0,20782.0,0.395429]
[1674076461963,1.27726975,20787.0,20783.0,0.19432097]
[1674076462493,0.0085,20786.0,20783.0,0.40095644]
[1674076462759,0.0085,20786.0,20783.0,0.68779647]
[1674076463043,0.74460572,20788.0,20783.0,1.15664397]
[1674076463044,0.15,20788.0,20783.0,1.15664397]
[1674076463338,0.59794658,20789.0,20784.0,0.42322097]
[1674076463339,0.00337386,20789.0,20784.0,0.42322097]
[1674076463621,0.00337386,20789.0,20785.0,0.67542897]
[1674076463890,0.074,20787.0,20785.0,1.15654497]
[1674076464161,0.00337386,20789.0,20785.0,0.481108]
[1674076464422,0.05237386,20789.0,20786.0,0.36490851]
[1674076464691,0.05237386,20789.0,20786.0,1.37140348]
[1674076464692,0.00337386,20789.0,20786.0,1.37140348]
[1674076464975,0.049,20787.0,20786.0,1.17708251]
[1674076465245,0.049,20787.0,20786.0,1.25598251]
[1674076465517,0.049,20787.0,20786.0,1.25798251]
[1674076465847,0.07737386,20789.0,20786.0,1.59339751]
[1674076465848,0.00337386,20789.0,20786.0,1.59339751]
[1674076466074,0.07737386,20789.0,20788.0,0.0788]
[1674076466357,0.07737386,20789.0,20788.0,1.521809]
[1674076466625,0.07737386,20789.0,20788.0,1.371809]
[1674076467167,0.07737386,20789.0,20788.0,1.54857902]
[1674076467446,0.00337386,20789.0,20788.0,1.54857902]
[1674076467696,0.05237386,20789.0,20788.0,1.55057902]
[1674076468247,0.05237386,20789.0,20788.0,1.37396191]
[1674076468658,0.05237386,20789.0,20788.0,3.26299586]
[1674076468947,0.05237386,20789.0,20788.0,2.84902371]
[1674076470079,0.05229091,20789.0,20788.0,2.45392021]
[1674076470080,0.00329091,20789.0,20788.0,1.65635841]
[1674076470360,0.00329091,20789.0,20788.0,1.31516191]
[1674076470361,0.01029091,20789.0,20788.0,1.31516191]
[1674076470672,0.01029091,20789.0,20788.0,0.02215291]
[1674076471257,0.01029091,20789.0,20788.0,0.022]
[1674076471546,0.00329091,20789.0,20788.0,0.02]
[1674076471831,0.00329091,20789.0,20786.0,1.51195372]
[1674076472113,0.07458784,20789.0,20786.0,0.20726172]
[1674076472385,0.07458784,20789.0,20785.0,0.481101]
[1674076472679,0.07458784,20789.0,20784.0,0.560037]
[1674076472957,0.0085,20788.0,20784.0,0.560037]
[1674076473525,0.0085,20788.0,20786.0,0.02]
[1674076473879,0.1585,20788.0,20785.0,0.00015294]
[1674076474444,0.1655,20788.0,20785.0,0.00015294]
[1674076474719,0.28372875,20788.0,20785.0,0.07905294]
[1674076474997,0.29072875,20788.0,20785.0,0.58016594]
[1674076475300,0.0155,20788.0,20785.0,0.58016894]
[1674076476046,0.007,20788.0,20786.0,0.42780464]
[1674076476048,0.007,20788.0,20787.0,0.0789]
[1674076476568,0.007,20788.0,20787.0,0.965667]
[1674076476676,0.007,20788.0,20787.0,1.446736]
[1674076477148,0.00329091,20789.0,20787.0,1.596736]
[1674076477376,0.00329091,20789.0,20788.0,0.417377]
[1674076477611,0.00329091,20789.0,20788.0,1.65489197]
[1674076477868,0.00329091,20789.0,20788.0,1.608269]
[1674076478356,0.01201504,20791.0,20789.0,0.15]
[1674076478595,0.01201504,20791.0,20790.0,1.931483]
[1674076478831,0.01201504,20791.0,20790.0,1.93166898]
[1674076479071,0.01201504,20791.0,20790.0,1.931483]
[1674076479323,0.01201504,20791.0,20790.0,1.852583]
[1674076479566,0.01201504,20791.0,20790.0,1.371583]
[1674076480041,0.01201504,20791.0,20790.0,1.54982841]
[1674076480889,0.01201504,20791.0,20790.0,1.71662841]
[1674076481714,0.01201504,20791.0,20790.0,1.14762841]
[1674076481986,0.01201504,20791.0,20790.0,1.28762841]
[1674076483317,0.01201504,20791.0,20790.0,1.14762841]
[1674076483609,0.01201504,20791.0,20790.0,0.66662841]
[1674076483891,0.01201504,20791.0,20790.0,0.39144541]
[1674076484970,0.01201504,20791.0,20790.0,0.31264541]
[1674076485249,0.01201504,20791.0,20790.0,0.26873341]
[1674076486675,0.01201504,20791.0,20790.0,0.16873341]
[1674076486990,0.01201504,20791.0,20790.0,0.24763341]
[1674076487280,0.01201504,20791.0,20790.0,0.1349]
[1674076488094,0.01201504,20791.0,20790.0,0.056]
[1674076488389,0.02051504,20791.0,20790.0,0.056]
[1674076489565,0.02051504,20791.0,20790.0,0.14838]
[1674076490123,0.02051504,20791.0,20790.0,0.1349]
[1674076490995,0.01201504,20791.0,20790.0,0.1349]
[1674076491271,0.01201504,20791.0,20790.0,0.6948]
[1674076491841,0.01201504,20791.0,20790.0,1.1758]
[1674076492369,0.01201504,20791.0,20790.0,1.489614]
[1674076492673,0.01201504,20791.0,20790.0,1.789714]
[1674076493807,0.01201504,20791.0,20790.0,1.939714]
[1674076494089,0.01201504,20791.0,20790.0,2.71691569]
[1674076494090,1.504e-05,20791.0,20790.0,2.71691569]
[1674076494368,1.504e-05,20791.0,20790.0,2.75652929]
[1674076494648,0.01234218,20795.0,20791.0,0.15004496]
[1674076494943,0.01234218,20795.0,20794.0,0.1572]
[1674076495236,0.01234218,20795.0,20794.0,1.852067]
[1674076495832,0.01234218,20795.0,20794.0,2.09608355]
[1674076496110,0.01234218,20795.0,20794.0,2.18808355]
[1674076496714,0.01234218,20795.0,20794.0,1.944067]
[1674076497008,0.01234218,20795.0,20794.0,2.322967]
[1674076497284,0.01234218,20795.0,20794.0,2.95016869]
[1674076498650,0.00796922,20796.0,20794.0,2.95016869]
[1674076499190,0.00796922,20796.0,20795.0,1.24056069]
[1674076499473,0.00796922,20796.0,20795.0,2.35232869]
[1674076500345,0.00796922,20796.0,20795.0,2.56461802]
[1674076500625,0.00340199,20796.0,20795.0,2.44432869]
[1674076500917,0.00312516,20796.0,20795.0,2.6628397]
[1674076501194,0.00312516,20796.0,20795.0,2.62190673]
[1674076501555,0.00312516,20796.0,20795.0,2.68334054]
[1674076501835,0.00312516,20796.0,20795.0,2.44432869]
[1674076502129,0.01201504,20797.0,20796.0,0.24112477]
[1674076502402,0.01201504,20797.0,20796.0,2.76430246]
[1674076502700,0.01201504,20797.0,20796.0,2.7191911]
[1674076503211,0.01201504,20797.0,20796.0,2.67327769]
[1674076503765,0.01201504,20797.0,20796.0,2.60109637]
[1674076503776,0.01201504,20797.0,20796.0,2.69309637]
[1674076504070,0.01201504,20797.0,20796.0,3.11287769]
[1674076504356,0.01201504,20797.0,20796.0,3.30987939]
[1674076504633,0.01201504,20797.0,20796.0,3.11287769]
[1674076505196,0.01201504,20797.0,20796.0,3.20487769]
[1674076506509,8e-08,20798.0,20797.0,0.18202975]
[1674076506831,0.01396934,20802.0,20797.0,0.15]
[1674076506836,0.01396934,20802.0,20798.0,0.05133706]
[1674076506843,0.01396934,20802.0,20800.0,0.00669407]
[1674076506848,0.01339592,20804.0,20800.0,0.00669407]
[1674076506849,0.01339592,20804.0,20800.0,0.96820707]
[1674076507060,0.01339592,20804.0,20803.0,0.0789]
[1674076507326,0.01339592,20804.0,20803.0,3.06300966]
[1674076507767,0.01339592,20804.0,20803.0,2.86868869]
[1674076508246,0.01339592,20804.0,20803.0,2.96068869]
[1674076508537,0.01339592,20804.0,20803.0,2.86868869]
[1674076508738,0.01339592,20804.0,20803.0,2.96068869]
[1674076509231,0.01339592,20804.0,20803.0,3.17530753]
[1674076509484,0.01339592,20804.0,20803.0,2.96068869]
[1674076509721,0.01339592,20804.0,20803.0,3.16177126]
[1674076510269,0.01339592,20804.0,20803.0,2.96068869]
[1674076510510,0.01511412,20807.0,20804.0,0.6536]
[1674076510744,0.01511412,20807.0,20806.0,0.1578]
[1674076510974,0.01511412,20807.0,20806.0,1.82750769]
[1674076511251,0.01511412,20807.0,20806.0,1.350306]
[1674076511465,0.01511412,20807.0,20806.0,1.52077831]
[1674076511948,0.01511412,20807.0,20806.0,1.82740769]
[1674076512182,0.01511412,20807.0,20806.0,2.14830769]
[1674076512415,0.01511412,20807.0,20806.0,2.09483376]
[1674076512671,0.09661246,20810.0,20806.0,2.78743376]
[1674076512912,0.09661246,20810.0,20809.0,0.1577]
[1674076512913,0.08525862,20810.0,20809.0,0.1577]
[1674076513145,0.08525862,20810.0,20809.0,2.88230269]
[1674076513381,0.08525862,20810.0,20809.0,3.22082876]
[1674076514322,0.0851678,20810.0,20809.0,3.41287804]
[1674076514602,0.01498806,20812.0,20809.0,3.41287804]
[1674076514603,0.01498806,20812.0,20810.0,0.38840641]
[1674076514878,0.01498806,20812.0,20810.0,2.36274069]
[1674076515464,0.01498806,20812.0,20810.0,2.57657307]
[1674076515756,0.01498806,20812.0,20810.0,2.39584401]
[1674076516035,0.01498806,20812.0,20810.0,1.63174232]
[1674076516923,0.01498806,20812.0,20810.0,1.53974232]
[1674076517203,0.01498806,20812.0,20810.0,1.46094232]
[1674076517808,0.01498806,20812.0,20810.0,1.55294232]
[1674076518084,0.01498806,20812.0,20810.0,1.46094232]
[1674076518368,0.01498806,20812.0,20810.0,1.55294232]
[1674076518643,0.01498806,20812.0,20810.0,1.46094232]
[1674076518934,0.01498806,20812.0,20810.0,1.55394232]
[1674076519518,0.01498806,20812.0,20810.0,1.370839]
[1674076519809,0.01498806,20812.0,20810.0,1.978639]
[1674076520088,0.00576788,20811.0,20810.0,2.07336138]
[1674076520366,0.00576788,20811.0,20810.0,1.86716507]
[1674076520650,0.00576788,20811.0,20810.0,2.40142676]
[1674076520952,8.8e-07,20811.0,20810.0,2.6140574]
[1674076521237,8.8e-07,20811.0,20810.0,1.64832964]
[1674076521609,8.8e-07,20811.0,20810.0,1.74032964]
[1674076521887,8.8e-07,20811.0,20810.0,1.74026964]
[1674076522797,8.8e-07,20811.0,20810.0,2.07879571]
[1674076523072,8.8e-07,20811.0,20810.0,2.34336676]
[1674076523920,8.8e-07,20811.0,20810.0,2.25136676]
[1674076524208,8.8e-07,20811.0,20810.0,3.48936676]
[1674076524489,0.00336274,20816.0,20815.0,0.01497999]
[1674076524775,0.01541602,20819.0,20815.0,1.10341365]
[1674076525045,0.01541602,20819.0,20816.0,1.38254466]
[1674076525517,0.01541602,20819.0,20817.0,2.44555166]
[1674076525604,0.01541602,20819.0,20818.0,0.0788]
[1674076525720,0.01541602,20819.0,20818.0,1.07417366]
[1674076525721,2e-08,20819.0,20818.0,1.07417366]
[1674076525948,2e-08,20819.0,20818.0,1.284457]
[1674076527159,2e-08,20819.0,20818.0,1.4734559]
[1674076528108,2e-08,20819.0,20818.0,1.95065759]
[1674076528329,2e-08,20819.0,20818.0,1.4734559]
[1674076528798,2e-08,20819.0,20818.0,1.4735159]
[1674076529899,2e-08,20819.0,20818.0,1.9438159]
[1674076530197,2e-08,20819.0,20818.0,2.09726659]
[1674076530760,2e-08,20819.0,20818.0,1.79726659]
[1674076531051,2e-08,20819.0,20818.0,1.2417649]
[1674076531343,2e-08,20819.0,20818.0,1.378832]
[1674076531618,2e-08,20819.0,20818.0,1.052766]
[1674076531908,2e-08,20819.0,20818.0,0.09206]
[1674076532188,0.07870002,20819.0,20818.0,0.09206]
[1674076532467,2e-08,20819.0,20818.0,0.09206]
[1674076532749,2e-08,20819.0,20818.0,0.08506]
[1674076533029,2e-08,20819.0,20818.0,0.07371897]
[1674076533535,0.00100002,20819.0,20818.0,0.08606]
[1674076533538,0.00100002,20819.0,20818.0,6e-05]
[1674076533826,0.00100002,20819.0,20818.0,0.08606]
[1674076534127,0.00100002,20819.0,20818.0,0.566413]
[1674076534404,0.00100002,20819.0,20818.0,0.64407581]
[1674076535822,0.00100002,20819.0,20818.0,1.12436881]
[1674076536453,0.00100002,20819.0,20818.0,1.43540781]
[1674076536728,0.00100002,20819.0,20818.0,2.45380988]
[1674076537005,0.00100002,20819.0,20818.0,2.37913557]
[1674076537520,0.00100002,20819.0,20818.0,2.3406095]
[1674076537534,0.00057823,20822.0,20818.0,2.41294669]
[1674076537829,0.00057823,20822.0,20819.0,1.38749969]
[1674076538113,0.00057823,20822.0,20820.0,2.24550969]
[1674076538387,0.00057823,20822.0,20821.0,1.36819069]
[1674076538662,0.01611494,20828.0,20822.0,0.15]
[1674076538968,0.01611494,20828.0,20823.0,1.96965497]
[1674076539250,0.01611494,20828.0,20824.0,0.81691597]
[1674076539541,0.01611494,20828.0,20825.0,1.96575697]
[1674076539820,0.01611494,20828.0,20826.0,0.318568]
[1674076540149,0.15304817,20827.0,20825.0,0.480187]
[1674076540424,0.01611494,20828.0,20826.0,1.0083457]
[1674076540712,0.01611494,20828.0,20826.0,1.25465072]
[1674076541006,0.01611494,20828.0,20826.0,0.5281877]
[1674076541307,0.01611494,20828.0,20826.0,0.0480187]
[1674076541591,0.16611494,20828.0,20826.0,0.0480187]